[Event "Croatian 1B League 2022"]
[Site "Porec"]
[Date "2022.10.01"]
[Round "8.9"]
[White "Kukurin, Luka"]
[Black "Cabarkapa, Novak"]
[Result "0-1"]
[ECO "B23"]
[WhiteElo "2089"]
[BlackElo "2433"]
[Annotator "TA"]
[PlyCount "92"]
[EventDate "2022.09.24"]
[EventType "team-tourn"]
[EventCountry "CRO"]
[SourceTitle "playchess.com"]
[Source "ChessBase"]
[SourceQuality "1"]
[TimeControl "40/5400+30:1800+30"]

{[%evp 9,92,4,0,0,0,0,0,0,0,0,5,0,0,0,-2,-6,0,-18,0,0,-10,-17,-14,-33,-17,-67,-13,-5,-8,-16,0,0,13,0,3,3,0,0,6,-2,-9,-13,0,-6,0,-7,0,-2,0,-70,0,-8,0,0,8,0,6,0,34,35,96,12,14,0,0,-47,-22,-320,-310,-327,-306,-589,-599,-610,-582,-506,-499,-29986,-29987,-29987,-29988,-29989,-29990,-29996,-714]} 1. e4 {[%emt 0:00:02]} c5 {[%emt 0:00:03]} 2. Nc3 {[%emt 0:00:07]} Nc6 {[%emt 0:00:14]} 3. Bb5 {[%emt 0:00:13]} Nd4 {[%emt 0:00:04]} 4. Nf3 {[%emt 0:00:18]} a6 {[%emt 0:00:04]} 5. Bd3 {[%emt 0:00:13]} g6 {[%emt 0:00:05]} 6. Rb1 {[%emt 0:06:07] B23: Closed Sicilian: Lines without g3.} Nc6 {[%emt 0:01:12]} 7. a3 {[%emt 0:02:41]} d6 {[%emt 0:00:14]} 8. b4 {[%emt 0:01:24] The position is equal.} Nf6 {[%emt 0:00:14] [#]} 9. Nd5 $146 {[%emt 0:02:01]} ({Predecessor:} 9. bxc5 dxc5 10. Bb2 b5 11. e5 Nd5 12. Nxd5 Qxd5 13. Ng5 Be6 14. Be4 Qd7 15. Qf3 {1-0 (35) Guseinov,G (2660)-Ivic,V (2525) Batumi 2019}) 9... Bg7 {[%emt 0:26:00]} 10. Bb2 {[%emt 0:17:28]} O-O {[%emt 0:02:14]} 11. O-O {[%emt 0:02:48]} Rb8 {[%emt 0:17:02]} 12. Re1 {[%emt 0:13:20]} Be6 {[%emt 0:12:31]} 13. Ng5 {[%emt 0:17:38]} Bd7 {[%emt 0:04:02]} 14. Nf3 {[%emt 0:06:38]} b5 {[%emt 0:02:32]} 15. h3 {[%emt 0:02:32]} Re8 {[%emt 0:03:37]} 16. Bf1 {[%emt 0:00:37]} e5 {[%emt 0:00:47]} 17. c3 {[%emt 0:04:16]} (17. Nxf6+ $11 Bxf6 18. c3) 17... Be6 {[%emt 0:02:19]} ({Black should try} 17... Nxd5 $1 $15 18. exd5 Ne7) 18. Nxf6+ $1 $11 {[%emt 0:02:09]} Qxf6 {[%emt 0:00:48]} 19. d3 {[%emt 0:00:32]} Bc8 {[%emt 0:04:31]} 20. Bc1 {[%emt 0:00:22]} Bb7 {[%emt 0:02:00]} 21. Bg5 {[%emt 0:00:17]} Qe6 {[%emt 0:00:06]} 22. Be3 {[%emt 0:00:29]} Qe7 {[%emt 0:00:13]} 23. Qd2 {[%emt 0:00:46]} Nd8 {[%emt 0:00:30]} 24. Bh6 {[%emt 0:05:28]} Bxh6 {[%emt 0:06:54]} 25. Qxh6 {[%emt 0:00:02]} f6 {[%emt 0:03:20]} (25... Ne6 {is interesting.} 26. c4 Nd4 27. bxc5 Nxf3+ 28. gxf3 Bc6) 26. h4 {[%emt 0:00:37]} Nf7 {[%emt 0:00:26]} 27. Qe3 {[%emt 0:00:27]} f5 {[%emt 0:00:27]} 28. exf5 {[%emt 0:01:36]} gxf5 {[%emt 0:00:13]} 29. g3 {[%emt 0:07:03]} (29. a4 $11) 29... Rbc8 {[%emt 0:01:25]} ({Black should play} 29... Kh8 $15 30. bxc5 f4 31. gxf4 Rg8+ 32. Bg2 Qf6) 30. d4 {[%emt 0:01:47]} cxd4 {[%emt 0:03:52]} 31. cxd4 {[%emt 0:00:01]} Qf6 {[%emt 0:01:30] And now ...f4 would win.} 32. Rbc1 {[%emt 0:02:10]} Rxc1 {[%emt 0:02:23]} 33. Rxc1 {[%emt 0:00:19]} Bxf3 {[%emt 0:01:58]} 34. Qxf3 {[%emt 0:00:02] Strongly threatening Rc6.} e4 {[%emt 0:00:47]} (34... exd4 $14 35. Qc6 Rf8) 35. Qh5 {[%emt 0:01:25]} (35. Qf4 $16) 35... e3 {[%emt 0:00:36]} 36. fxe3 {[%emt 0:02:08]} Rxe3 {[%emt 0:00:08][%cal Be8e3,Be3g3,Bg3g6,Bg6f6][%mdl 32]} 37. Rc8+ {[%emt 0:00:53]} (37. Kh2 $1 $11) 37... Kg7 $15 {[%emt 0:00:05]} 38. Rc7 $2 {[%emt 0:00:23][%mdl 8192] [#] Now White is beyond hope.} (38. Kh2 $1 $11 {and White is okay.}) 38... Rxg3+ $19 {[%emt 0:00:14]} 39. Bg2 {[%emt 0:01:03]} Qxd4+ {[%emt 0:02:10]} 40. Kh2 $2 {[%emt 0:00:00]} (40. Kf1 Qf6 41. Qd1) 40... Rg6 {[%emt 0:00:00] ( -> ...Qe5+)} 41. Qxf5 {[%emt 0:02:18]} Qxh4+ {[%emt 0:01:11]} 42. Kg1 {[%emt 0:02:11]} Rf6 {[%emt 0:00:39]} 43. Qc2 {[%emt 0:00:52] [#]} (43. Qd3 $19 Qf2+ 44. Kh1) 43... Qd4+ {[%emt 0:06:51] Black mates.} 44. Kh2 {[%emt 0:00:16]} Qf4+ {[%emt 0:00:03]} 45. Kg1 {[%emt 0:00:11]} Qe3+ {[%emt 0:00:03]} 46. Kh2 {[%emt 0:00:08]} Rh6+ {[%emt 0:00:04] Weighted Error Value: White=0.38/Black=0.10 (very precise)} 0-1

[Event "Croatian 1B League 2022"]
[Site "Porec"]
[Date "2022.10.01"]
[Round "8.10"]
[White "Vojak, Daniel"]
[Black "Grbac, Boris"]
[Result "1/2-1/2"]
[ECO "B76"]
[WhiteElo "2300"]
[BlackElo "2060"]
[Annotator "TA"]
[PlyCount "44"]
[EventDate "2022.09.24"]
[EventType "team-tourn"]
[EventCountry "CRO"]
[SourceTitle "playchess.com"]
[Source "ChessBase"]
[SourceQuality "1"]
[TimeControl "40/5400+30:1800+30"]

{[%evp 22,44,39,64,61,39,24,41,38,44,42,27,108,0,0,-123,-101,-144,-145,-140,-144,-142,0,0,0]} 1. e4 {[%emt 0:00:02]} c5 {[%emt 0:00:23]} 2. Nf3 {[%emt 0:00:05]} d6 {[%emt 0:00:19]} 3. d4 {[%emt 0:00:06]} cxd4 {[%emt 0:00:21]} 4. Nxd4 {[%emt 0:00:13]} Nf6 {[%emt 0:00:22]} 5. Nc3 {[%emt 0:00:03]} g6 {[%emt 0:00:34]} 6. Be3 {[%emt 0:00:47]} Bg7 {[%emt 0:00:31]} 7. f3 {[%emt 0:00:06]} O-O {[%emt 0:00:39]} 8. g4 {[%emt 0:00:13]} Nc6 {[%emt 0:07:24]} 9. Qd2 {[%emt 0:00:24]} Be6 {[%emt 0:02:30]} 10. Nxe6 {[%emt 0:00:18]} fxe6 {[%emt 0:00:08]} 11. O-O-O {[%emt 0:00:04]} Ne5 {[%emt 0:05:08]} 12. Be2 {[%emt 0:00:25]} Rc8 {[%emt 0:04:25] B76: Sicilian Dragon: Yugoslav Attack, 9 g4 and 9 0-0-0.} 13. h4 {[%emt 0:06:45][%cal Bh2h4,Bh4h5][%mdl 32]} Qa5 {[%emt 0:04:21][%cal Ob7b5]} 14. h5 {[%emt 0:04:15]} Nc4 {[%emt 0:00:26] White is slightly better.} 15. Bxc4 {[%emt 0:01:25]} Rxc4 {[%emt 0:00:20]} 16. hxg6 {[%emt 0:00:42]} Rfc8 {[%emt 0:12:27]} (16... hxg6 $11 17. Bh6 Rfc8 18. Bxg7 Kxg7) 17. Bd4 {[%emt 0:18:03] [#]} ({White should play} 17. e5 $1 $16 {[%cal Re5f6]} Qxe5 18. Bd4 (18. Bxa7 Nd5 $17) 18... Rxd4 19. Qxd4 Qxd4 20. Rxd4 hxg6 21. Ra4) 17... hxg6 $146 {[%emt 0:21:55][%cal Of6e4]} ({Predecessor:} 17... e5 18. gxh7+ Kh8 19. Be3 b5 20. g5 Nd7 21. g6 Nc5 22. Bh6 Ne6 23. Qd5 Rxc3 24. Bxg7+ Nxg7 25. bxc3 {1-0 (43) Dorst,J-Hatarik,R Hessen 1994}) 18. Qh2 {[%emt 0:14:26]} (18. Qe2 $11 {keeps the balance.}) 18... e5 $1 $17 {[%emt 0:08:28]} 19. Be3 {[%emt 0:02:19]} ({Avoid the trap} 19. g5 $2 Nh5 20. Bf2 Rxc3 21. bxc3 Qxa2 $19) 19... Rxc3 {[%emt 0:00:15]} 20. bxc3 {[%emt 0:00:21]} Qxc3 {[%emt 0:00:12]} 21. Qe2 {[%emt 0:00:58] [#]} Qa1+ {[%emt 0:05:01]} (21... Nd5 $1 $17 {[%mdl 512] ( -> ...Qa3+)} 22. Rxd5 (22. exd5 $2 e4 $19) 22... Qa1+ 23. Kd2 Qxh1) 22. Kd2 $11 {[%emt 0:00:04] Really sharp!} Qc3+ {[%emt 0:00:41] Weighted Error Value: White=0.35/Black=0.26 (precise)} ({Don't play} 22... Qxa2 23. Qd3 $16) 1/2-1/2

[Event "Croatian 1B League 2022"]
[Site "Porec"]
[Date "2022.10.01"]
[Round "8.11"]
[White "Mainenti, Kevin"]
[Black "Cupic, Lovro"]
[Result "0-1"]
[ECO "C30"]
[WhiteElo "1910"]
[BlackElo "2216"]
[Annotator "TA"]
[PlyCount "56"]
[EventDate "2022.09.24"]
[EventType "team-tourn"]
[EventCountry "CRO"]
[SourceTitle "playchess.com"]
[Source "ChessBase"]
[SourceQuality "1"]
[TimeControl "40/5400+30:1800+30"]

{[%evp 9,56,9,46,-25,-14,-72,-72,-75,-63,-62,-41,-93,-71,-89,-77,-116,-99,-114,-115,-108,-106,-108,-93,-121,-125,-129,-111,-126,-99,-229,-239,-539,-541,-439,-404,-429,-336,-1473,-1388,-1126,-1041,-29994,-29993,-29996,-29997,-29997,-29998,-29998,-29999]} 1. f4 {[%emt 0:00:48]} e5 {[%emt 0:00:11]} 2. fxe5 {[%emt 0:00:02]} d6 {[%emt 0:00:05]} 3. e4 {[%emt 0:00:05]} dxe5 {[%emt 0:00:11]} 4. Nf3 {[%emt 0:00:41]} Be6 {[%emt 0:07:02]} 5. Nc3 {[%emt 0:15:53]} Bc5 {[%emt 0:03:10]} 6. d3 {[%emt 0:06:04] C30: King's Gambit Declined.} ({White should play} 6. Nxe5 $14 Qd4 7. Nd3) 6... Nc6 {[%emt 0:00:15] [#]} 7. Bg5 $146 {[%emt 0:02:44]} (7. Na4 $11 {keeps the balance.} Be7 8. Be2) ({Predecessor:} 7. Na4 Qd6 8. Nxc5 Qxc5 9. Qe2 f6 10. c3 Nge7 11. Be3 Qd6 12. Qc2 f5 13. Be2 {½-½ (44) Pietzsch,M (2073)-Dorsch,A Sebnitz 2002}) 7... f6 $17 {[%emt 0:01:02]} 8. Bh4 {[%emt 0:00:20] Black is better.} Nge7 {[%emt 0:06:22]} 9. Qd2 {[%emt 0:07:47]} O-O {[%emt 0:02:26]} 10. Bf2 {[%emt 0:00:56]} (10. Na4 $15 Bd6 11. Bf2) 10... Qd6 {[%emt 0:04:55]} 11. Bxc5 {[%emt 0:06:38]} Qxc5 {[%emt 0:00:07]} 12. O-O-O {[%emt 0:00:26]} Nd4 {[%emt 0:03:10]} 13. Kb1 {[%emt 0:10:32]} b5 {[%emt 0:09:17][%cal Bb7b5,Bb5b4][%mdl 32]} 14. Ne2 {[%emt 0:04:52]} b4 {[%emt 0:03:25] Black has more active pieces. The white rooks are badly placed.} ({Much less strong is} 14... Nxc2 15. Rc1 $16) 15. Nfxd4 {[%emt 0:04:47]} exd4 {[%emt 0:01:37]} 16. Nf4 {[%emt 0:00:21]} Bf7 $40 {[%emt 0:00:11][%mdl 128] Black is out for blood.} 17. g4 {[%emt 0:01:23]} Rab8 {[%emt 0:01:35]} 18. b3 {[%emt 0:04:12]} Nc8 {[%emt 0:02:36][%cal Be7c8,Bc8d6,Bd6b5,Bb5c3][%mdl 32] Hoping for ...Nd6.} 19. h4 {[%emt 0:15:21]} (19. Bh3 $17 {might work better.}) 19... Nd6 $19 {[%emt 0:00:06]} 20. a4 $2 {[%emt 0:00:23]} (20. g5 {is a better defense.} Nb5 21. gxf6) 20... bxa3 {[%emt 0:00:14][%cal Of7b3] Strongly threatening ...Bxb3!} 21. Ka1 {[%emt 0:00:22]} Nb5 {[%emt 0:02:04]} 22. g5 {[%emt 0:07:16]} Nc3 {[%emt 0:00:08]} 23. Re1 {[%emt 0:00:42] [#]} (23. Rc1 fxg5 24. hxg5 Qxg5 25. Bh3 Bxb3 26. cxb3 Rxf4 27. Be6+ Kh8 28. Qh2) 23... Bxb3 $1 {[%emt 0:00:18][%mdl 512]} 24. cxb3 {[%emt 0:00:08]} Rxb3 {[%emt 0:00:10][%cal Bb8b3,Bb3b2,Bb2a2][%mdl 32] ( -> ...a2)} 25. Ne6 {[%emt 0:00:10]} Qb6 {[%emt 0:00:04] Black mates.} 26. Bh3 {[%emt 0:01:41]} Rb2 {[%emt 0:00:06]} 27. Qxc3 {[%emt 0:00:16]} dxc3 {[%emt 0:00:07]} 28. Nxf8 {[%emt 0:00:05] [#]} Ra2+ $3 {[%emt 0:00:05][%mdl 512] Black took control after the opening.  Weighted Error Value: White=0.69/Black=0.09 (flawless)} 0-1

[Event "Croatian 1B League 2022"]
[Site "Porec"]
[Date "2022.10.01"]
[Round "8.12"]
[White "Novosel, Lovro"]
[Black "Popovic, Mirko"]
[Result "1-0"]
[ECO "D93"]
[WhiteElo "2274"]
[BlackElo "1903"]
[Annotator "TA"]
[PlyCount "79"]
[EventDate "2022.09.24"]
[EventType "team-tourn"]
[EventCountry "CRO"]
[SourceTitle "playchess.com"]
[Source "ChessBase"]
[SourceQuality "1"]
[TimeControl "40/5400+30:1800+30"]

{[%evp 16,79,24,24,21,18,29,32,95,87,125,127,147,147,155,143,158,166,189,166,208,203,243,219,258,247,236,196,191,187,257,254,300,233,291,278,292,297,318,309,356,358,351,293,300,266,310,298,291,278,372,365,461,493,504,452,496,439,420,365,531,534,702,694,674,672]} 1. Nf3 {[%emt 0:00:10]} d5 {[%emt 0:01:12]} 2. c4 {[%emt 0:01:03]} Nf6 {[%emt 0:01:23]} 3. d4 {[%emt 0:01:39]} c6 {[%emt 0:07:10]} 4. Qc2 {[%emt 0:01:00]} g6 {[%emt 0:01:27]} 5. Nc3 {[%emt 0:03:09]} Bg7 {[%emt 0:00:34]} 6. Bf4 {[%emt 0:01:05]} O-O {[%emt 0:01:38]} 7. e3 {[%emt 0:00:46]} Bf5 {[%emt 0:01:32]} 8. Qb3 {[%emt 0:00:37]} Qb6 {[%emt 0:00:16]} 9. Be2 {[%emt 0:01:18]} Nbd7 {[%emt 0:07:20] D93: Grünfeld: 4 Nf3 Bg7 5 Bf4 0-0 6 e3.} 10. h3 {[%emt 0:02:08]} Qxb3 {[%emt 0:00:23]} (10... h6 {is interesting.} 11. O-O dxc4 12. Bxc4 g5) 11. axb3 {[%emt 0:00:04] [#]} dxc4 $146 {[%emt 0:00:37]} (11... h6 $14) ({Predecessor:} 11... a6 12. O-O h6 13. Rfc1 Rfc8 14. g4 Be6 15. Bg3 Nb6 16. Na4 Nxa4 17. bxa4 Ne4 {0-1 (38) Dlugy,M (2500)-Balog,I (2531) Chess.com INT 2015}) 12. bxc4 $16 {[%emt 0:00:28]} Nb6 {[%emt 0:00:21]} 13. O-O {[%emt 0:01:11]} Ne4 {[%emt 0:04:54]} 14. Ra3 {[%emt 0:08:07]} Nxc3 {[%emt 0:01:36]} 15. bxc3 {[%emt 0:00:11]} ({Resist} 15. Rxc3 $6 c5 $14) 15... Be6 {[%emt 0:00:31]} 16. Nd2 {[%emt 0:00:18]} Bc8 {[%emt 0:05:03]} 17. Rb1 {[%emt 0:03:08][%cal Ob1b6]} Nd7 {[%emt 0:00:13]} 18. c5 {[%emt 0:03:34]} e5 {[%emt 0:02:52]} 19. Bh2 {[%emt 0:00:16]} Re8 {[%emt 0:01:20]} 20. Bf3 {[%emt 0:02:34]} Bf8 {[%emt 0:03:42]} 21. Ra4 {[%emt 0:08:23]} f5 {[%emt 0:01:15]} 22. Nc4 {[%emt 0:00:41]} e4 {[%emt 0:03:06]} (22... a6 {is a better defense.} 23. Bg3 (23. Nxe5 Nxe5 24. Bxe5 Bxc5 $16) 23... Be7) 23. Be2 $18 {[%emt 0:00:43]} Be7 {[%emt 0:03:39]} 24. Bd6 {[%emt 0:04:18]} Bd8 {[%emt 0:00:03]} 25. Bf4 {[%emt 0:02:00] [#] Hoping for Nd6.} Be7 {[%emt 0:00:12]} 26. g4 {[%emt 0:00:34]} Kg7 {[%emt 0:08:56]} 27. Kh2 {[%emt 0:02:50]} Rf8 {[%emt 0:04:46]} 28. gxf5 {[%emt 0:00:30]} gxf5 {[%emt 0:02:54]} 29. Bd6 {[%emt 0:02:59]} Kf6 {[%emt 0:11:30]} 30. Ra2 {[%emt 0:06:38]} Rg8 {[%emt 0:05:02]} 31. Bxe7+ {[%emt 0:00:50]} Kxe7 {[%emt 0:00:13]} 32. Nd6 {[%emt 0:00:05][%cal Bc4d6,Bd6f5,Bf5d6][%mdl 32]} b5 {[%emt 0:00:44]} 33. Nxf5+ {[%emt 0:00:58]} Kf6 {[%emt 0:01:36]} 34. Nd6 {[%emt 0:00:16]} Ke7 {[%emt 0:07:42]} 35. Nxe4 {[%emt 0:00:25]} Rf8 {[%emt 0:00:48]} 36. f4 {[%emt 0:00:23]} Nf6 {[%emt 0:00:56]} 37. Nxf6 {[%emt 0:00:10]} Kxf6 {[%emt 0:00:05]} (37... Rxf6 $142 38. Rba1 a6) 38. Bf3 {[%emt 0:00:27] White is clearly winning.} Bf5 {[%emt 0:00:23]} 39. e4 {[%emt 0:00:53]} Bd7 {[%emt 0:00:50]} 40. Rba1 {[%emt 0:00:36] White took control after the opening.  Weighted Error Value: White=0.16 (very precise) /Black=0.38} 1-0

[Event "Croatian 1B League 2022"]
[Site "Porec"]
[Date "2022.10.02"]
[Round "9.1"]
[White "Aczel, Gergely"]
[Black "Draskovic, Luka"]
[Result "1/2-1/2"]
[ECO "E62"]
[WhiteElo "2474"]
[BlackElo "2492"]
[Annotator "TA"]
[PlyCount "159"]
[EventDate "2022.09.24"]
[EventType "team-tourn"]
[EventCountry "CRO"]
[SourceTitle "playchess.com"]
[Source "ChessBase"]
[SourceQuality "1"]
[TimeControl "40/5400+30:1800+30"]

{[%evp 13,159,30,34,18,10,13,24,26,21,0,17,20,27,33,28,25,47,48,46,7,7,7,4,0,29,24,35,36,39,6,25,27,37,14,11,21,24,0,9,0,0,0,18,18,18,0,0,0,0,0,12,12,24,24,24,24,31,31,31,24,24,24,24,0,24,11,11,11,12,12,12,12,12,12,28,0,0,0,0,0,0,0,0,0,0,0,35,0,0,0,0,0,4,0,0,0,0,0,0,0,0,0,0,0,0,0,0,0,0,0,0,0,0,0,0,0,0,0,0,0,0,0,0,0,0,0,0,0,0,0,0,0,0,0,0,0,0,0,0,0,0,0,0,0,0,0,0,0]} 1. d4 {[%emt 0:00:04]} Nf6 {[%emt 0:01:37]} 2. c4 {[%emt 0:00:07]} d6 {[%emt 0:00:06]} 3. Nf3 {[%emt 0:02:03]} g6 {[%emt 0:00:15]} 4. g3 {[%emt 0:00:25]} Bg7 {[%emt 0:00:06]} 5. Bg2 {[%emt 0:00:09]} O-O {[%emt 0:00:31]} 6. O-O {[%emt 0:00:08]} c6 {[%emt 0:04:11]} 7. Nc3 {[%emt 0:00:21]} Bf5 $1 {[%emt 0:00:06][%mdl 4] now scores much better than the old 7...Qa5.} 8. Be3 {[%emt 0:01:04] E62: King's Indian: Fianchetto: 6...c6 and Panno Variation (6...Nc6) without ...a6.} Ne4 {[%emt 0:04:24] [#]} 9. Rc1 $146 {[%emt 0:00:11][%cal Ba1c1,Bc1c3,Bc3b3][%mdl 32]} ({Predecessor:} 9. Nxe4 Bxe4 10. Qd2 Re8 11. Bh6 Bh8 12. Rad1 d5 13. b3 Nd7 14. Bh3 Bxf3 15. exf3 dxc4 16. bxc4 Nb6 17. Qd3 e6 {½-½ (41) Koukouvinos,V (1719)-Anagnostopoulos,V (1357) Trikala 2021}) 9... Nxc3 {[%emt 0:02:12]} 10. Rxc3 {[%emt 0:00:02] White has an edge.} Be4 {[%emt 0:00:53]} 11. Rb3 {[%emt 0:26:00]} Qc7 {[%emt 0:05:52]} 12. Bh3 {[%emt 0:02:46]} Bxf3 {[%emt 0:08:48]} 13. exf3 {[%emt 0:00:04]} e6 {[%emt 0:00:19]} 14. Bf4 {[%emt 0:13:06]} e5 {[%emt 0:05:31]} 15. dxe5 {[%emt 0:01:06]} dxe5 {[%emt 0:00:34]} 16. Bg5 {[%emt 0:02:59]} (16. Be3 $5 {[%cal Re3c5]}) 16... Na6 {[%emt 0:12:11]} 17. Rd3 {[%emt 0:08:03]} Nc5 {[%emt 0:00:27] Inhibits Rd7.} 18. Rd6 {[%emt 0:06:37]} h6 {[%emt 0:15:49]} 19. Be3 {[%emt 0:04:12]} Rfd8 $1 {[%emt 0:02:45]} 20. Rxd8+ {[%emt 0:04:42]} ({Of course not} 20. Bxc5 Bf8 21. Rxd8 Rxd8 $11) 20... Rxd8 {[%emt 0:00:22]} 21. Qb1 {[%emt 0:01:38]} (21. Qc2 $5 {[%cal Re3c5]} Qe7 22. b4 $11) 21... b6 {[%emt 0:06:08]} 22. b4 {[%emt 0:07:08]} Nb7 {[%emt 0:01:12]} 23. Rd1 {[%emt 0:00:43]} Rxd1+ {[%emt 0:08:26]} 24. Qxd1 {[%emt 0:01:30]} Bf8 {[%emt 0:00:33]} 25. a3 {[%emt 0:07:21]} a5 {[%emt 0:05:30]} 26. Qd7 {[%emt 0:05:27]} Qxd7 {[%emt 0:00:49]} 27. Bxd7 {[%emt 0:00:02]} axb4 {[%emt 0:01:14]} 28. axb4 $11 {[%emt 0:00:02][%mdl 4096] Endgame KBB-KBN} c5 {[%emt 0:03:55]} 29. bxc5 {[%emt 0:00:37]} Nxc5 {[%emt 0:02:43]} 30. Bc6 {[%emt 0:01:53]} Kg7 {[%emt 0:00:36]} 31. Kf1 {[%emt 0:01:47]} f5 {[%emt 0:00:43]} 32. f4 {[%emt 0:01:47]} Bd6 {[%emt 0:01:31]} 33. fxe5 {[%emt 0:00:21]} Bxe5 {[%emt 0:00:04]} 34. f4 {[%emt 0:00:22]} Bc3 {[%emt 0:00:28]} 35. Ke2 {[%emt 0:00:10]} Kf7 {[%emt 0:00:52]} 36. Kd1 {[%emt 0:00:27]} Ke7 {[%emt 0:00:06]} 37. Kc2 {[%emt 0:00:25]} Bf6 {[%emt 0:00:13]} 38. Kd1 {[%emt 0:01:31]} h5 {[%emt 0:01:53]} 39. Ke2 {[%emt 0:00:41]} h4 {[%emt 0:00:21]} 40. Kf3 {[%emt 0:00:00]} hxg3 {[%emt 0:00:00]} 41. hxg3 {[%emt 0:01:41]} Nb3 {[%emt 0:02:40]} 42. Ba4 {[%emt 0:06:06] A strong pair of Bishops.} Nc5 {[%emt 0:00:04]} 43. Bb5 {[%emt 0:02:44]} Bc3 {[%emt 0:00:55]} 44. g4 {[%emt 0:04:36]} Kf7 {[%emt 0:01:41]} 45. Bg1 {[%emt 0:02:12]} Ke7 {[%emt 0:01:16]} 46. Bf2 {[%emt 0:00:22]} Kf7 {[%emt 0:00:28]} 47. Bc6 {[%emt 0:00:38]} Bf6 {[%emt 0:01:50]} 48. Kg3 {[%emt 0:04:11]} Ke7 {[%emt 0:02:10]} 49. Bd5 {[%emt 0:00:37]} Ke8 {[%emt 0:00:35]} 50. Kf3 {[%emt 0:03:56]} Ke7 {[%emt 0:00:16] The position is equal.} 51. Bg8 {[%emt 0:00:33]} Kf8 {[%emt 0:01:04]} 52. Bd5 {[%emt 0:00:07]} Ke7 {[%emt 0:00:03]} 53. gxf5 {[%emt 0:00:21]} gxf5 {[%emt 0:00:06]} 54. Bg8 {[%emt 0:00:10]} Kd7 {[%emt 0:00:34]} 55. Bd5 {[%emt 0:02:40]} Kd6 {[%emt 0:00:48]} 56. Bf7 {[%emt 0:00:54]} Ke7 {[%emt 0:00:26]} 57. Bg6 {[%emt 0:00:39]} Ke6 {[%emt 0:00:12]} 58. Ke2 {[%emt 0:00:34]} Bc3 {[%emt 0:00:38]} 59. Be8 {[%emt 0:00:35]} Ke7 {[%emt 0:00:38]} 60. Bg6 {[%emt 0:00:29]} Ke6 {[%emt 0:00:39]} 61. Bh5 {[%emt 0:00:03]} Ke7 {[%emt 0:00:45]} 62. Bf3 {[%emt 0:00:10]} Kd6 {[%emt 0:03:56]} 63. Bg2 {[%emt 0:02:13]} Ne6 {[%emt 0:00:54]} 64. Be3 {[%emt 0:01:21]} Bd4 {[%emt 0:00:49]} 65. Bc1 {[%emt 0:02:19]} Nc5 {[%emt 0:05:46]} 66. Bh3 {[%emt 0:00:16]} Ke6 {[%emt 0:00:33]} 67. Bd2 {[%emt 0:00:31]} Kf6 {[%emt 0:00:40]} 68. Be1 {[%emt 0:00:14]} Ke6 {[%emt 0:01:10]} 69. Bh4 {[%emt 0:00:09]} Bf6 {[%emt 0:00:11]} 70. Bf2 {[%emt 0:00:08]} Bb2 {[%emt 0:00:18]} 71. Kf3 {[%emt 0:00:05]} Bf6 {[%emt 0:00:26]} 72. Bf1 {[%emt 0:00:08]} Kd6 {[%emt 0:01:14]} 73. Be2 {[%emt 0:00:07]} Kc6 {[%emt 0:00:53]} 74. Be3 {[%emt 0:00:40]} Kd6 {[%emt 0:00:39]} 75. Bd1 {[%emt 0:00:16]} Ke6 {[%emt 0:00:21]} 76. Bc2 {[%emt 0:00:11]} Be7 {[%emt 0:00:31]} 77. Ke2 {[%emt 0:00:20]} Bf6 {[%emt 0:00:32]} 78. Kd2 {[%emt 0:00:08]} Bg7 {[%emt 0:00:20]} 79. Kc1 {[%emt 0:01:50]} Bh6 {[%emt 0:04:45]} 80. Kd2 {[%emt 0:00:00] Weighted Error Value: White=0.07 (flawless) /Black=0.04 (flawless)} 1/2-1/2